bitfinex-derivatives/quotes_ETHF0:USTF0_20251204
["timestamp","ask_amount","ask_price","bid_price","bid_amount"]
[1764832709058,4.18201958,3190.8,3190.7,8.2455]
[1764832709259,12.62691958,3190.8,3190.7,8.2455]
[1764832709661,5.34351958,3190.8,3190.7,8.2455]
[1764832710054,0.97421958,3190.8,3190.7,8.2455]
[1764832711469,0.00715276,3190.8,3190.7,8.2455]
[1764832711658,0.96468617,3191.3,3191.2,8.2455]
[1764832711860,5.33411293,3191.4,3191.3,8.2455]
[1764832712560,5.33411293,3191.4,3191.0,8.2455]
[1764832712561,8.4449,3191.1,3191.0,8.2455]
[1764832712765,9.41254724,3191.1,3191.0,8.2455]
[1764832713761,4.84204724,3191.1,3191.0,10.6595]
[1764832714461,8.93594724,3191.1,3191.0,10.6595]
[1764832714766,4.84204724,3191.1,3191.0,10.6595]
[1764832715372,0.96764724,3191.1,3191.0,10.6595]
[1764832718168,0.63594585,3191.1,3191.0,10.6595]
[1764832718866,1.10861267,3191.4,3191.3,8.27]
[1764832719169,1.267e-05,3191.7,3191.5,0.8501]
[1764832719357,5.52706892,3191.8,3191.7,8.27]
[1764832719556,1.65266892,3191.8,3191.7,8.27]
[1764832719766,5.52706892,3191.8,3191.7,8.27]
[1764832719962,9.62343381,3191.8,3191.7,8.27]
[1764832720269,0.00246489,3191.8,3191.7,8.27]
[1764832720568,7.97076489,3191.8,3191.7,8.27]
[1764832721261,5.52953381,3191.8,3191.7,8.27]
[1764832721771,9.62343381,3191.8,3191.7,8.27]
[1764832722164,5.52953381,3191.8,3191.7,8.27]
[1764832722363,3.87686489,3191.8,3191.7,8.27]
[1764832722564,0.00246489,3191.8,3191.7,8.27]
[1764832724972,5.53535243,3191.8,3191.7,11.4778]
[1764832725276,3.87686489,3191.8,3191.7,11.4778]
[1764832725471,5.53573902,3191.8,3191.7,11.4778]
[1764832725671,9.62963902,3191.8,3191.7,11.4778]
[1764832725876,5.53573902,3191.8,3191.7,11.4778]
[1764832726375,3.87686489,3191.8,3191.7,11.4778]
[1764832727575,2.21384806,3193.8,3193.3,0.15656]
[1764832727775,7.8644,3193.6,3193.5,3.2078]
[1764832728075,10.1117,3193.0,3192.9,3.2078]
[1764832728466,10.11447351,3193.0,3192.9,3.21175151]
[1764832729672,10.11447351,3193.0,3192.6,0.00469667]
[1764832729673,7.8644,3192.7,3192.6,0.00469667]
[1764832730374,7.8644,3192.2,3192.1,3.2078]
[1764832730776,7.8644,3192.2,3192.1,3.21123475]
[1764832730980,48.6644,3192.2,3192.1,3.21123475]
[1764832732874,2.2473,3195.0,3193.0,3.2078]
[1764832733173,7.8644,3194.1,3194.0,3.2078]
[1764832733772,7.86691778,3194.1,3194.0,3.2078]
[1764832738286,2.2473,3195.0,3194.0,3.2078]
[1764832738287,3.2078,3195.9,3194.0,9.2078]
[1764832738471,2.2473,3196.8,3195.8,3.2078]
[1764832738676,10.1117,3195.6,3195.2,0.83826332]
[1764832738987,3.8034,3195.3,3195.2,3.2078]
[1764832739177,2.2473,3195.6,3195.2,3.2078]
[1764832739483,2.2473,3196.2,3195.5,5.0342]
[1764832739690,0.15634,3197.9,3196.1,2.5171]
[1764832739691,3.2078,3197.2,3196.1,2.5171]
[1764832739878,3.2078,3197.2,3196.3,3.2078]
[1764832740389,3.8034,3196.4,3196.3,3.2078]
[1764832740685,3.8034,3196.4,3194.5,2.23857505]
[1764832740686,7.8644,3196.0,3195.3,3.2078]
[1764832740884,2.2473,3196.2,3195.3,3.2078]
[1764832741385,3.8034,3195.4,3195.3,3.2078]
[1764832741581,2.2473,3195.6,3195.3,3.2078]
[1764832743891,6.248,3195.4,3195.3,3.2078]
[1764832745182,9.9892,3195.3,3195.2,0.00237591]
[1764832745385,2.2473,3195.6,3194.9,3.2078]
[1764832745386,13.5466,3195.0,3194.9,3.2078]
[1764832745589,13.5466,3195.0,3194.0,0.83826332]
[1764832745590,9.9892,3194.6,3194.5,3.2078]
[1764832745786,6.248,3194.0,3193.9,3.2078]
[1764832745980,47.048,3194.0,3193.9,3.2078]
[1764832746492,47.05070557,3194.0,3193.9,3.21109343]
[1764832749896,6.25070557,3194.0,3193.9,3.21109343]
[1764832750093,0.00270557,3194.0,3193.9,9.06969343]
[1764832750392,0.00270557,3194.0,3193.9,13.06549343]
[1764832750791,9.99190557,3194.0,3193.9,3.21109343]
[1764832751792,6.25070557,3194.0,3193.9,3.21109343]
[1764832751987,0.00270557,3194.0,3193.9,9.06969343]
[1764832752987,6.25070557,3194.0,3193.9,9.06969343]
[1764832753189,6.25070557,3194.0,3193.9,3.21109343]
[1764832753492,0.00270557,3194.0,3193.9,9.06969343]
[1764832753686,0.00270557,3194.0,3193.9,13.06549343]
[1764832754284,2.2473,3195.6,3193.9,13.06549343]
[1764832754604,2.7570534,3200.6,3199.7,1.9911]
[1764832754891,3.5574,3201.1,3200.5,3.2078]
[1764832755093,3.5574,3201.1,3200.4,3.2078]
[1764832755290,3.5574,3200.4,3200.0,3.2078]
[1764832755599,3.5574,3200.4,3200.1,3.2078]
[1764832755991,3.5574,3200.4,3200.0,3.21000121]
[1764832756296,3.56092154,3201.1,3200.0,3.21000121]
[1764832756589,17.76568014,3200.9,3200.7,4.86684399]
[1764832756794,17.76568014,3200.9,3200.8,1.65904399]
[1764832756989,17.76568014,3200.9,3200.7,4.86684399]
[1764832757188,17.76568014,3200.9,3200.8,1.65904399]
[1764832757589,17.76568014,3200.9,3200.7,3.2078]
[1764832757792,17.76568014,3200.9,3200.8,1.65466896]
[1764832758388,17.76568014,3200.9,3200.7,4.86246896]
[1764832758791,17.76568014,3200.9,3200.7,3.2078]
[1764832758991,40.8,3200.8,3200.7,3.2078]
[1764832759992,40.8,3200.8,3200.4,3.2078]
[1764832760191,3.2078,3200.7,3200.0,3.21000121]
[1764832761597,40.8,3200.8,3200.4,3.2078]
[1764832761899,44.0078,3200.8,3200.0,3.21000121]
[1764832763797,44.0078,3200.8,3200.0,5.27159745]
[1764832764103,40.8,3200.8,3200.4,3.2078]
[1764832764600,3.5574,3200.4,3199.9,0.00468538]
[1764832764803,3.5574,3200.4,3197.9,3.91750635]
[1764832764804,3.5574,3199.7,3199.4,3.2078]
[1764832764992,3.2078,3199.6,3199.0,3.2078]
[1764832765193,2.06159624,3200.6,3199.0,3.2078]
[1764832765194,3.2078,3202.9,3201.1,0.15617]
[1764832765401,3.5574,3203.2,3201.7,3.2078]
[1764832765402,2.06159624,3202.2,3201.7,3.2078]
[1764832765705,1.54631411,3200.8,3200.6,3.2078]
[1764832765887,40.8,3200.7,3200.4,0.00468538]
[1764832766090,40.80220111,3200.7,3200.4,0.0079967]
[1764832766887,40.80220111,3200.7,3200.6,3.2078]
[1764832767086,17.76788125,3200.7,3200.6,3.2078]
[1764832767994,17.76788125,3200.7,3200.4,0.0079967]
[1764832768199,19.82947749,3200.7,3200.2,3.07611279]
[1764832769202,19.82947749,3200.7,3200.2,3.07913622]
[1764832769597,13.005,3200.6,3200.2,3.07913622]
[1764832769902,13.005,3200.6,3200.2,0.00302343]
[1764832769903,3.2078,3200.4,3200.2,0.00302343]
[1764832770904,3.2078,3200.4,3200.1,0.00468538]
[1764832771801,3.2078,3200.4,3200.1,0.00758888]
[1764832772404,17.76788125,3200.7,3200.2,3.2078]
[1764832773003,3.5574,3200.4,3200.2,3.2078]
[1764832773207,3.5574,3200.4,3199.0,3.2078]
[1764832773208,6.29269471,3200.4,3199.0,3.2078]
[1764832773398,6.7652,3199.7,3199.1,0.8926499]
[1764832773700,6.7652,3199.7,3199.0,3.2078]
[1764832773701,40.8,3199.6,3199.2,0.8926499]
[1764832773903,40.8,3199.6,3199.0,3.2078]
[1764832774093,40.8,3199.6,3199.1,0.89273644]
[1764832774289,40.8,3199.6,3199.1,0.0031613]
[1764832777307,40.8,3199.6,3199.2,0.89537347]
[1764832777308,7.3577,3199.3,3199.2,0.89537347]
[1764832777599,7.3577,3199.3,3199.1,0.0031613]
[1764832777600,13.2219,3199.2,3199.1,0.0031613]
[1764832777802,13.2219,3198.7,3198.2,3.2078]
[1764832778196,40.8,3198.6,3198.2,3.2078]
[1764832778505,58.56568014,3198.6,3198.2,3.2078]
[1764832778704,17.76568014,3198.6,3198.2,3.21108144]
[1764832780005,17.76568014,3198.6,3198.2,4.86438664]
[1764832780305,17.76568014,3198.6,3198.3,2.22691761]
[1764832781406,25.12338014,3198.6,3198.5,2.22691761]
[1764832781805,25.12338014,3198.6,3198.2,3.21108144]
[1764832781806,0.00468538,3198.7,3198.6,14.2863]
[1764832782106,0.00468538,3198.7,3198.6,17.4941]
[1764832782411,17.77036552,3198.7,3198.6,17.4941]
[1764832782596,32.56846552,3198.7,3198.6,3.2078]
[1764832782798,32.56846552,3198.7,3198.6,5.42645944]
[1764832783000,24.94236552,3198.7,3198.6,3.2078]
[1764832783196,17.77036552,3198.7,3198.6,17.4941]
[1764832783506,16.08215688,3198.7,3198.6,17.4941]
[1764832783908,16.08215688,3198.7,3198.6,19.71997003]
[1764832784101,16.08215688,3198.7,3198.6,17.4941]
[1764832784300,13.5498356,3198.7,3198.6,17.4941]
[1764832784704,0.00468538,3199.0,3198.6,17.4941]
[1764832784705,0.02794,3202.4,3199.7,3.2078]
[1764832784900,0.02794,3202.4,3198.6,6.70993521]
[1764832784901,0.02794,3202.4,3202.1,3.2078]
[1764832785105,4.6413,3202.2,3202.1,3.2078]
[1764832785299,4.6413,3202.2,3202.1,4.88238399]
[1764832785497,13.8491,3202.2,3201.3,5.44449055]
[1764832785805,0.00468538,3202.1,3201.4,0.00468538]
[1764832786002,0.00468538,3202.1,3201.7,3.2078]
[1764832787209,0.00468538,3202.1,3201.4,0.00468538]
[1764832788104,0.00468538,3202.1,3200.7,3.2078]
[1764832788105,3.2078,3201.8,3200.7,3.2078]
[1764832788509,16.5368,3201.8,3200.7,3.2078]
[1764832788706,16.5368,3201.8,3200.8,3.2078]
[1764832788907,16.5368,3201.8,3201.0,0.00468538]
[1764832789109,16.5368,3201.8,3201.0,0.00869533]
[1764832789314,16.5368,3201.8,3201.2,3.2078]
[1764832789710,16.5368,3201.8,3201.3,0.8315052]
[1764832789913,16.5368,3201.8,3201.4,5.2e-06]
[1764832790113,16.5368,3201.8,3201.2,3.2078]
[1764832790311,16.5368,3201.8,3199.7,4.64306751]
[1764832790312,4.6413,3201.1,3200.1,5.44449055]
[1764832790513,3.2078,3200.7,3200.1,3.2078]
[1764832790815,40.8,3200.6,3200.1,3.2078]
[1764832791415,40.8,3200.6,3200.1,3.2103331]
[1764832791611,0.00468538,3202.1,3200.6,2.73529471]
[1764832791811,4.6413,3201.8,3201.3,3.2078]
[1764832792012,4.6413,3202.8,3200.2,15.02322791]
[1764832792013,1.65913496,3203.9,3202.6,3.2078]
[1764832792204,1.65913496,3203.9,3201.1,2.8938]
[1764832792205,4.6413,3203.9,3203.8,3.2078]
[1764832792406,4.6413,3203.1,3203.0,3.2078]
[1764832792605,45.4413,3203.1,3202.5,3.2078]
[1764832793009,45.44856894,3203.1,3202.5,3.21490781]
[1764832793221,0.00726894,3203.1,3203.0,3.2078]
[1764832796516,4.64856894,3203.1,3203.0,3.2078]
[1764832799323,45.44856894,3203.1,3203.0,3.2078]
[1764832800213,51.44856894,3203.1,3202.5,0.00710781]
[1764832800412,3.2078,3202.6,3201.6,3.2078]
[1764832800611,3.2078,3202.1,3201.6,3.2078]
[1764832801524,3.2078,3202.1,3201.6,3.21131516]
[1764832801926,3.2078,3202.1,3201.6,0.00351516]
[1764832802817,4.6413,3202.4,3201.6,0.00351516]
[1764832802818,4.6413,3202.4,3201.9,3.2078]
[1764832807231,16.6008,3202.9,3202.2,2.73529471]
[1764832807428,45.44856894,3203.1,3201.6,0.00351516]
[1764832807429,0.00726894,3203.1,3202.7,2.73529471]
[1764832807627,0.00726894,3203.1,3203.0,3.2078]
[1764832811833,7.09986894,3203.1,3203.0,3.2078]
[1764832812028,14.49096894,3203.1,3202.6,3.2078]
[1764832812334,14.4837,3202.7,3202.2,3.2078]
[1764832812532,7.0926,3202.3,3202.2,3.2078]
[1764832813136,3.2078,3203.0,3202.2,19.01318218]
[1764832813332,0.00726894,3203.1,3202.7,3.2078]
[1764832813629,7.0926,3202.8,3202.7,3.2078]
[1764832813821,47.8926,3202.8,3202.7,3.2078]
[1764832816332,40.8,3202.8,3202.7,3.2078]
[1764832816834,7.0926,3202.8,3202.7,3.2078]
[1764832817026,0.00726894,3203.1,3202.7,3.2078]
[1764832818823,0.00726894,3203.1,3203.0,15.1744]
[1764832819829,0.00726894,3203.1,3202.7,3.2078]
[1764832819830,14.49096894,3203.1,3202.7,3.2078]
[1764832820132,18.6824,3202.8,3202.7,3.2078]
[1764832820836,18.6824,3202.8,3202.2,3.2078]
[1764832821231,18.6824,3202.8,3202.3,0.83552996]
[1764832821431,7.0926,3202.5,3202.4,0.83552996]
[1764832822343,7.0926,3202.5,3202.2,4.32184467]
[1764832822344,7.0926,3202.5,3202.3,0.83552996]
[1764832822547,7.0926,3202.4,3202.3,0.83552996]
[1764832822749,14.4837,3202.4,3202.3,0.83552996]
[1764832824042,7.0926,3202.3,3202.2,4.04332996]
[1764832824341,7.0926,3202.3,3202.2,4.04818547]
[1764832824841,7.0926,3202.3,3202.2,3.2078]
[1764832825042,14.4837,3202.3,3202.2,4.04818568]
[1764832825236,14.4837,3202.3,3202.2,3.2078]
[1764832827246,55.2837,3202.3,3202.2,3.2078]
[1764832828744,55.2837,3202.3,3201.9,0.84038568]
[1764832828745,14.7251,3202.0,3201.9,0.84038568]
[1764832828946,14.7251,3201.9,3201.8,4.04818568]
[1764832834249,15.40093705,3201.9,3201.8,3.2078]
[1764832834547,15.40093705,3201.9,3200.6,0.1562]
[1764832834548,14.6795,3201.1,3201.0,3.2078]
[1764832834750,15.35533705,3201.1,3201.0,3.2078]
[1764832834958,14.6795,3200.5,3200.4,3.2078]
[1764832835652,55.4833888,3200.5,3200.4,3.2102142]
[1764832836046,55.4833888,3200.5,3200.4,0.0024142]
[1764832837156,55.4833888,3200.5,3200.1,0.00468538]
[1764832837157,14.6795,3200.2,3200.1,0.00468538]
[1764832838259,14.6795,3200.2,3200.1,0.00758277]
[1764832839663,14.6795,3199.6,3199.5,3.2078]
[1764832840349,14.6795,3199.6,3199.0,3.2078]
[1764832840546,4.4075,3199.5,3199.0,3.21350318]
[1764832840747,4.4075,3199.5,3198.0,3.2824]
[1764832840748,4.4075,3199.0,3198.3,3.2078]
[1764832840956,40.8,3198.9,3198.3,3.2078]
[1764832841649,7.288,3198.4,3198.3,3.2078]
[1764832841956,3.2078,3198.7,3198.3,3.2078]
[1764832841957,3.21248538,3198.7,3198.3,10.77896123]
[1764832843257,3.21248538,3198.7,3198.6,15.0478]
[1764832843462,3.21248538,3198.7,3198.6,19.2815]
[1764832844272,3.21248538,3198.7,3198.3,10.77896123]
[1764832844651,3.21248538,3198.7,3198.6,15.0478]
[1764832849768,17.78908538,3198.7,3198.3,3.21136123]
[1764832850956,7.1512,3198.4,3198.3,3.21136123]
[1764832851164,7.1512,3198.4,3198.3,10.21316123]
[1764832851357,3.21248538,3198.7,3198.3,10.21316123]
[1764832851559,3.2078,3199.3,3199.2,14.0631]
[1764832852973,14.5766,3199.0,3198.9,0.00468538]
[1764832853270,19.2035,3199.0,3198.9,0.00468538]
[1764832853671,60.0035,3199.0,3198.9,0.00468538]
[1764832853968,7.1512,3199.0,3198.9,7.00648538]
[1764832855762,19.2035,3199.0,3198.9,0.00468538]
[1764832859474,19.99175686,3199.0,3198.9,0.00468538]
[1764832860675,60.79175686,3199.0,3198.9,0.00468538]
[1764832861665,46.21515686,3199.0,3198.5,17.2709]
[1764832861862,14.5766,3198.6,3198.5,3.2078]
[1764832862176,0.78933728,3198.6,3198.5,17.2709]
[1764832862474,0.78933728,3198.9,3198.5,17.2709]
[1764832862668,15.36593728,3198.8,3198.7,7.0018]
[1764832865675,17.02507224,3198.8,3198.7,7.0018]
[1764832866172,9.59967224,3198.8,3198.7,14.0631]
[1764832866478,7.94053728,3198.8,3198.7,14.0631]
[1764832866973,0.78933728,3198.8,3198.7,14.0631]
[1764832870271,2.4520234,3198.8,3198.7,14.0631]
[1764832870469,2.19483204,3199.5,3199.2,14.9415]
[1764832870673,7.1954,3199.5,3199.4,14.9415]
[1764832871167,14.2429,3199.5,3199.4,14.9415]
[1764832871478,7.20008538,3199.6,3199.5,14.9415]
[1764832871671,14.24758538,3199.6,3199.5,14.9415]
[1764832872166,14.24758538,3199.6,3199.5,7.4188]
[1764832872571,0.00468538,3199.6,3199.5,14.9415]
[1764832872772,0.00468538,3199.6,3199.5,17.0003]
[1764832873373,0.00468538,3199.6,3199.5,14.9415]
[1764832875874,0.00468538,3199.6,3199.5,18.4566]
[1764832882088,40.8,3200.3,3199.5,18.4566]
[1764832882478,15.00943947,3200.2,3200.1,7.4188]
[1764832882985,15.00943947,3200.2,3199.7,3.2078]
[1764832883190,7.1954,3199.8,3199.7,18.1493]
[1764832883382,7.96193947,3199.8,3199.7,18.1493]
[1764832883780,15.00943947,3199.8,3199.7,18.1493]
[1764832884388,15.00943947,3199.8,3199.7,10.6266]
[1764832885482,15.00943947,3199.8,3199.7,18.1493]
[1764832886483,11.6569,3199.0,3198.9,14.9415]
[1764832886785,3.97409326,3199.0,3198.9,14.9415]
[1764832887888,18.21699326,3199.0,3198.5,2.7414]
[1764832888095,21.9122,3199.0,3198.9,7.4188]
[1764832888390,22.67889846,3199.0,3198.9,7.4188]
[1764832889490,10.4032,3199.0,3198.9,14.9415]
[1764832889695,17.4507,3199.0,3198.9,14.9415]
[1764832891790,10.4032,3199.0,3198.9,14.9415]
[1764832892199,7.1954,3199.0,3198.9,14.9415]
[1764832893297,7.96221189,3199.0,3198.9,14.9415]
[1764832895302,15.00971189,3199.0,3198.9,14.9415]
[1764832896095,19.57831189,3199.0,3198.4,2.06254003]
[1764832896402,18.8115,3199.0,3198.9,7.2512]
[1764832896589,19.57852822,3199.0,3198.9,7.2512]
[1764832897498,19.57852822,3199.0,3198.9,14.5329]
[1764832898899,0.76702822,3199.0,3198.9,14.5329]
[1764832899302,8.26662822,3199.0,3198.9,14.5329]
[1764832904399,15.61272822,3199.0,3198.9,14.5329]
[1764832908008,19.86432822,3199.0,3198.9,14.5329]
[1764832910705,19.86432822,3199.0,3198.5,5.84446373]
[1764832910905,14.5827,3198.6,3198.5,14.66711]
[1764832911108,7.2684,3198.6,3198.5,14.66711]
[1764832911609,14.5827,3198.6,3198.5,14.66711]
[1764832912409,18.8343,3199.0,3198.9,7.0564]
[1764832912610,19.60216105,3199.0,3198.9,14.5108]
[1764832912908,19.60216105,3199.0,3198.6,1.43315373]
[1764832913109,0.76786105,3198.9,3198.8,14.5108]
[1764832913311,3.2078,3199.1,3199.0,19.1134]
[1764832916113,3.9767137,3199.1,3199.0,19.1134]
[1764832917115,3.2078,3199.5,3199.4,14.5108]
[1764832917313,3.9765647,3199.5,3199.4,15.94395373]
[1764832918611,3.9765647,3199.5,3199.4,14.5108]
[1764832918612,11.2449647,3199.5,3199.4,14.5108]
[1764832918812,22.8108647,3199.5,3199.4,14.5108]
[1764832919615,18.5592647,3199.5,3199.4,14.5108]
[1764832919814,11.2449647,3199.5,3199.4,14.5108]
[1764832920516,3.9765647,3199.5,3199.4,14.5108]
[1764832922719,22.8108647,3199.5,3199.4,14.5108]
[1764832923214,14.5827,3199.0,3198.9,17.7186]
[1764832923419,19.6030647,3199.0,3198.9,10.2642]
[1764832923618,19.6030647,3199.0,3198.9,7.0564]
[1764832923816,7.2388,3198.6,3198.5,16.5504]
[1764832924014,8.07451649,3198.6,3198.5,24.2897]
[1764832925523,8.07451649,3198.6,3198.5,20.5017]
[1764832926424,8.07451649,3198.6,3198.5,18.2513]
[1764832927324,15.71081649,3198.6,3198.5,18.2513]
[1764832928622,8.07451649,3198.6,3198.5,18.2513]
[1764832928824,0.83571649,3198.6,3198.5,18.2513]
[1764832929018,14.8751,3198.9,3198.8,7.3042]
[1764832929227,15.71057065,3198.9,3198.8,15.0435]
[1764832931126,18.91837065,3198.9,3198.8,15.0435]
[1764832931623,18.91837065,3198.9,3198.8,7.3042]
[1764832933027,18.0829,3198.9,3198.8,7.3042]
[1764832933325,18.92978491,3198.9,3198.8,7.3042]
[1764832934128,7.2388,3198.5,3198.4,29.22265373]
[1764832934330,8.08568491,3198.5,3198.4,29.22265373]
[1764832934625,20.27948491,3198.5,3198.4,29.22265373]
[1764832934827,14.8751,3198.4,3197.4,3.2078]
[1764832935029,17.15513864,3198.4,3197.6,12.735]
[1764832935223,17.15513864,3198.4,3197.4,3.2078]
[1764832935424,19.4326,3198.0,3197.9,15.0435]
[1764832935622,20.27948491,3198.0,3197.9,15.0435]
[1764832936222,20.28215698,3198.0,3197.9,15.04578481]
[1764832937429,8.08835698,3198.0,3197.9,16.47893854]
[1764832938131,8.08835698,3198.0,3197.9,0.00228481]
[1764832938132,26.28215698,3198.0,3197.9,0.00228481]
[1764832938319,26.28215698,3198.0,3196.5,7.7393]
[1764832938320,7.2388,3196.6,3196.5,7.7393]
[1764832938523,17.15513864,3196.6,3196.5,7.3042]
[1764832938722,14.8751,3196.3,3196.2,15.0435]
[1764832938928,17.15513864,3196.3,3196.2,15.0435]
[1764832939225,14.8751,3196.3,3196.2,15.04698065]
[1764832941224,7.2388,3196.3,3196.2,7.7393]
[1764832941431,40.8,3196.6,3196.5,15.0435]
[1764832941630,18.0829,3196.7,3196.6,15.0435]
[1764832942231,18.0829,3196.7,3196.6,15.0473214]
[1764832942431,18.0829,3196.7,3196.6,7.3080214]
[1764832942731,18.0829,3196.7,3196.6,0.0038214]
[1764832944120,18.0829,3196.7,3196.6,15.0473214]
[1764832945236,10.4466,3196.7,3196.6,15.0473214]
[1764832945433,18.0829,3196.7,3196.6,15.0473214]
[1764832945733,3.2078,3196.7,3196.6,15.0473214]
[1764832947135,10.4466,3196.7,3196.6,15.0473214]
[1764832947427,18.0829,3196.7,3196.6,15.0473214]
[1764832949131,18.0829,3196.7,3196.6,0.0038214]
[1764832949933,18.0829,3196.7,3196.6,7.3080214]
[1764832950133,18.0829,3196.7,3196.6,0.0038214]
[1764832953330,18.92519399,3196.7,3196.6,0.0038214]
[1764832954335,18.0829,3196.7,3196.6,14.7041214]
[1764832956140,18.92545488,3196.7,3196.6,14.7041214]
[1764832958144,18.92545488,3196.7,3196.6,7.3080214]
[1764832958347,15.71765488,3196.7,3196.6,7.3080214]
[1764832959042,15.71765488,3196.7,3196.6,0.0038214]
[1764832959544,18.92545488,3196.7,3196.6,0.0038214]
[1764832963144,20.59119413,3196.7,3196.6,0.0038214]
[1764832963654,18.92545488,3196.7,3196.6,0.0038214]
[1764832967157,21.12028692,3196.7,3196.6,0.0038214]
[1764832968155,7.5603,3196.2,3196.1,28.1179]
[1764832968352,8.40285488,3196.2,3196.1,28.1179]
[1764832968551,15.94845488,3196.2,3196.1,28.1179]
[1764832968853,17.61711426,3196.2,3196.1,28.1179]
[1764832969255,17.61711426,3196.2,3196.1,28.12111403]
[1764832969557,10.07151426,3196.2,3196.1,28.12111403]
[1764832970456,17.61711426,3196.2,3196.1,15.38311403]
[1764832970757,17.61711426,3196.2,3196.1,0.00321403]
[1764832971258,15.94845488,3196.2,3196.1,0.00321403]
[1764832971659,15.94845488,3196.2,3196.1,7.68541403]
[1764832972272,15.94845488,3196.2,3196.1,0.00321403]
[1764832972463,15.94845488,3196.2,3196.1,15.43661403]
[1764832974169,15.94845488,3196.2,3196.1,7.68541403]
[1764832975374,15.94845488,3196.2,3196.1,0.00321403]
[1764832975771,18.17333084,3196.2,3196.1,0.00321403]
[1764832976070,15.94845488,3196.2,3196.1,0.00321403]
[1764832976760,14.5703,3195.4,3195.3,3.2078]
[1764832976965,14.5703,3195.4,3195.3,18.6412]
[1764832976966,0.84255488,3195.4,3195.3,18.6412]
[1764832977969,0.84606803,3195.4,3195.3,18.64401955]
[1764832978370,17.08453984,3195.4,3195.3,18.64401955]
[1764832978768,15.41636803,3195.4,3195.3,10.89281955]
[1764832978971,15.41636803,3195.4,3195.3,3.21061955]
[1764832979362,15.41636803,3195.4,3195.3,0.00281955]
[1764832979570,15.41636803,3195.4,3193.6,3.788]
[1764832979571,4.6281,3195.0,3194.4,18.6412]
[1764832979869,16.23606379,3194.7,3194.6,15.4334]
[1764832980174,19.1984,3194.5,3194.4,10.89]
[1764832980479,20.04095488,3194.5,3194.4,3.21128489]
[1764832980779,2.50840291,3194.5,3194.4,18.64468489]
[1764832981273,0.84255488,3194.5,3194.4,18.64468489]
[1764832983174,7.86725488,3194.5,3194.4,18.64468489]
[1764832983874,20.04075488,3194.5,3194.4,18.64468489]
[1764832984276,12.49515488,3194.5,3194.4,18.64468489]
[1764832985280,7.86725488,3194.5,3194.4,18.64468489]
[1764832985581,0.84255488,3194.5,3194.4,18.64468489]
[1764832987178,0.00469277,3195.0,3194.9,14.3112]
[1764832987479,0.00469277,3195.0,3194.9,15.71089206]
[1764832988179,0.00469277,3195.0,3194.9,15.86737206]
[1764832988879,0.00469277,3195.0,3194.9,19.07517206]
[1764832989084,0.00351315,3195.4,3195.3,14.3112]
[1764832996086,0.00351315,3195.4,3195.3,14.46766]
[1764832996380,4.6281,3196.0,3195.9,14.46763]
[1764832996575,3.2078,3196.4,3195.9,14.46763]
[1764832996774,17.9441,3196.4,3196.3,7.273]
[1764832997485,17.94667487,3196.4,3196.3,7.273]
[1764832997677,17.94667487,3196.4,3196.3,14.3112]
[1764832997678,10.43137487,3196.4,3196.3,14.3112]
[1764832997984,10.43137487,3196.4,3196.1,0.15642]
[1764832997985,14.7363,3196.2,3196.1,0.15642]
[1764832999286,15.66321719,3196.2,3196.1,0.15642]
[1764833002091,15.66321719,3196.2,3195.4,6.503]
[1764833002283,15.66321719,3196.1,3196.0,7.273]
[1764833002482,8.14791719,3196.1,3196.0,14.3112]
[1764833002890,0.92691719,3196.1,3196.0,14.3112]
[1764833003183,8.14791719,3196.1,3196.0,14.3112]
[1764833004391,15.66321719,3196.1,3196.0,14.3112]
[1764833008594,15.66321719,3196.1,3195.7,10.4062]
[1764833008595,14.7136,3195.8,3195.7,10.4062]
[1764833008792,15.64051719,3195.8,3195.7,17.6261]
[1764833010398,8.22701719,3195.8,3195.7,17.6261]
[1764833010597,0.92691719,3195.8,3195.7,17.6261]
[1764833010790,8.22732109,3195.9,3195.8,14.4183]
[1764833011096,0.92722109,3195.9,3195.8,15.85418346]
[1764833012399,7.30267487,3196.4,3196.3,14.4183]
[1764833012597,7.30267487,3196.4,3196.3,15.85418346]
[1764833013108,14.71617487,3196.4,3196.3,7.1984]
[1764833013900,14.6008,3196.2,3196.1,17.5628]
[1764833014102,14.0938,3196.1,3196.0,7.03672]
[1764833015402,14.0938,3196.1,3196.0,14.19332]
[1764833020611,6.7931,3196.1,3196.0,14.19332]
[1764833021808,14.0938,3196.1,3196.0,14.19332]
[1764833024610,0.92562462,3196.1,3196.0,14.19332]
[1764833024807,0.00257487,3196.4,3196.3,14.19331]
[1764833025001,0.00257487,3196.4,3196.3,15.62919346]
[1764833025197,6.79567487,3196.4,3196.3,15.62919346]
[1764833027213,0.00257487,3196.4,3196.3,15.62919346]
[1764833027417,7.07177487,3196.4,3196.3,15.62919346]
[1764833028119,7.07389277,3196.7,3196.6,13.3901]
[1764833028309,13.99769277,3196.7,3196.6,13.3901]
[1764833029206,14.00143518,3196.7,3196.6,13.3901]
[1764833032307,14.00143518,3196.7,3196.4,0.15641]
[1764833032610,18.2333,3196.5,3196.4,7.02701]
[1764833033006,18.2333,3196.5,3196.4,13.54651]
[1764833034508,18.2333,3196.5,3196.4,3.36421]
[1764833034906,18.2333,3196.5,3196.4,10.23481]
[1764833035405,18.2333,3196.5,3196.4,3.2078]
[1764833036014,4.2403,3196.0,3195.9,10.0784]
[1764833036217,18.2333,3196.0,3195.9,16.5979]
[1764833036816,19.25067612,3196.0,3195.9,16.5979]
[1764833038018,19.25067612,3196.0,3195.9,10.0784]
[1764833038214,19.25067612,3196.0,3195.9,16.5979]
[1764833038516,19.25067612,3196.0,3195.9,10.0784]
[1764833038716,20.91684177,3196.0,3195.9,3.2078]
[1764833039415,19.25067612,3196.0,3195.9,3.2078]
[1764833040321,13.993,3195.8,3195.7,0.15644]
[1764833040520,16.67698592,3195.8,3195.7,0.15644]
[1764833041224,9.75318592,3195.8,3195.7,13.54654]
[1764833041517,2.68398592,3195.8,3195.7,13.54654]
[1764833041920,1.01737612,3195.8,3195.7,13.54654]
[1764833042119,15.01037612,3195.8,3195.7,7.02704]
[1764833042517,15.01037612,3195.8,3195.7,0.15644]
[1764833042712,16.44625958,3195.8,3195.7,0.15644]